[Event "*** Titled Tuesday Blitz"]
[Site "Chess.com"]
[Date "2020.12.29"]
[Round "7"]
[White "peixe64"]
[Black "Vesper2018"]
[Result "0-1"]
[WhiteElo "2447"]
[BlackElo "2627"]
[TimeControl "180+1"]
[EndTime "11:16:40 PST"]
[Termination "Vesper2018 won on time"]

1. e4 {[%clk 0:03:00.9]} 1... c5 {[%clk 0:02:59.4]} 2. Nf3 {[%clk 0:03:00.8]}
2... d6 {[%clk 0:02:59.4]} 3. d4 {[%clk 0:03:00.6]} 3... cxd4 {[%clk 0:02:59.7]}
4. Nxd4 {[%clk 0:03:00.9]} 4... Nf6 {[%clk 0:03:00.3]} 5. Nc3 {[%clk 0:03:00.9]}
5... a6 {[%clk 0:03:00.7]} 6. Be2 {[%clk 0:03:00.7]} 6... e5 {[%clk 0:03:00.2]}
7. Nb3 {[%clk 0:03:00.3]} 7... Be7 {[%clk 0:03:00.3]} 8. O-O {[%clk 0:02:59.8]}
8... O-O {[%clk 0:03:00.8]} 9. Qd3 {[%clk 0:02:55.3]} 9... Be6 {[%clk
0:02:31.9]} 10. Nd5 {[%clk 0:02:53.8]} 10... Bxd5 {[%clk 0:02:31.7]} 11. exd5
{[%clk 0:02:53.3]} 11... Nbd7 {[%clk 0:02:30.6]} 12. c4 {[%clk 0:02:52]} 12...
a5 {[%clk 0:02:29.9]} 13. Be3 {[%clk 0:02:48.1]} 13... a4 {[%clk 0:02:25.1]} 14.
Nd2 {[%clk 0:02:47.2]} 14... b6 {[%clk 0:02:22.9]} 15. b4 {[%clk 0:02:35.9]}
15... Re8 {[%clk 0:02:10.2]} 16. Rfd1 {[%clk 0:02:34.4]} 16... e4 {[%clk
0:02:06.3]} 17. Qc2 {[%clk 0:02:20.6]} 17... Bf8 {[%clk 0:02:02.9]} 18. h3
{[%clk 0:02:05.1]} 18... g6 {[%clk 0:01:57.1]} 19. Rac1 {[%clk 0:02:01]} 19...
Qe7 {[%clk 0:01:34.5]} 20. Nb1 {[%clk 0:01:47.2]} 20... Qe5 {[%clk 0:01:28.1]}
21. Na3 {[%clk 0:01:39.9]} 21... Nh5 {[%clk 0:01:25.3]} 22. Nb5 {[%clk 0:01:35]}
22... Rac8 {[%clk 0:01:20.1]} 23. Qxa4 {[%clk 0:01:26.8]} 23... Nf4 {[%clk
0:01:17]} 24. Bf1 {[%clk 0:01:23.4]} 24... Nf6 {[%clk 0:01:02.4]} 25. Nd4 {[%clk
0:01:18.1]} 25... N6h5 {[%clk 0:00:50.5]} 26. Qc2 {[%clk 0:00:48.8]} 26... Nxd5
{[%clk 0:00:47.4]} 27. Qd2 {[%clk 0:00:35]} 27... Nxe3 {[%clk 0:00:42.9]} 28.
Qxe3 {[%clk 0:00:35.4]} 28... Nf4 {[%clk 0:00:34.4]} 29. g3 {[%clk 0:00:31.6]}
29... Bh6 {[%clk 0:00:34]} 30. Qb3 {[%clk 0:00:13.9]} 30... Nd3 {[%clk
0:00:27.7]} 31. Bxd3 {[%clk 0:00:06.4]} 31... Bxc1 {[%clk 0:00:27.1]} 32. Be2
{[%clk 0:00:05.3]} 32... e3 {[%clk 0:00:23.5]} 0-1

[Event "*** Titled Tuesday Blitz"]
[Site "Chess.com"]
[Date "2020.12.29"]
[Round "7"]
[White "Nafania1"]
[Black "MatyChess1"]
[Result "1-0"]
[WhiteElo "2410"]
[BlackElo "2525"]
[TimeControl "180+1"]
[EndTime "11:16:45 PST"]
[Termination "Nafania1 won by resignation"]

1. e4 {[%clk 0:03:00.9]} 1... c5 {[%clk 0:02:59.3]} 2. Nf3 {[%clk 0:03:00.8]}
2... g6 {[%clk 0:02:59.8]} 3. c3 {[%clk 0:03:00.3]} 3... Nc6 {[%clk 0:02:58.9]}
4. Bb5 {[%clk 0:02:56]} 4... Bg7 {[%clk 0:02:57.8]} 5. d4 {[%clk 0:02:55.6]}
5... cxd4 {[%clk 0:02:55.6]} 6. cxd4 {[%clk 0:02:55.9]} 6... Qb6 {[%clk
0:02:54.8]} 7. Nc3 {[%clk 0:02:55.2]} 7... Nf6 {[%clk 0:02:44.1]} 8. O-O {[%clk
0:02:50.6]} 8... O-O {[%clk 0:02:30.5]} 9. d5 {[%clk 0:02:49.2]} 9... Nb8 {[%clk
0:02:24.5]} 10. Be3 {[%clk 0:02:49.2]} 10... Qa5 {[%clk 0:02:23.3]} 11. e5
{[%clk 0:02:35.9]} 11... Ne8 {[%clk 0:02:08.1]} 12. Bd4 {[%clk 0:02:16]} 12...
Nc7 {[%clk 0:01:52.6]} 13. a4 {[%clk 0:01:59.4]} 13... Nba6 {[%clk 0:00:36.5]}
14. Re1 {[%clk 0:01:56.4]} 14... Ne8 {[%clk 0:00:18.7]} 15. Ne4 {[%clk
0:01:41.2]} 15... Qd8 {[%clk 0:00:17.2]} 16. d6 {[%clk 0:01:38.5]} 16... b6
{[%clk 0:00:09.1]} 17. Qe2 {[%clk 0:01:33.3]} 17... Nb4 {[%clk 0:00:08.7]} 18.
Rac1 {[%clk 0:01:29]} 18... Bb7 {[%clk 0:00:09.1]} 19. Bc3 {[%clk 0:01:24.9]}
19... Nc6 {[%clk 0:00:09.5]} 20. h4 {[%clk 0:01:21.2]} 20... h6 {[%clk
0:00:09.2]} 21. Bc4 {[%clk 0:01:16.1]} 21... e6 {[%clk 0:00:08.9]} 22. Qd2
{[%clk 0:01:12.6]} 22... Rc8 {[%clk 0:00:08]} 23. Bd3 {[%clk 0:01:08.2]} 23...
f5 {[%clk 0:00:03.7]} 24. exf6 {[%clk 0:01:07.2]} 24... Nxf6 {[%clk 0:00:03.9]}
25. Nxf6+ {[%clk 0:01:01.4]} 25... Bxf6 {[%clk 0:00:04.8]} 26. Bxg6 {[%clk
0:01:01.5]} 26... Bxc3 {[%clk 0:00:05.4]} 27. Rxc3 {[%clk 0:01:01.3]} 27... Qf6
{[%clk 0:00:06]} 28. Qxh6 {[%clk 0:01:00.7]} 28... Qg7 {[%clk 0:00:05.8]} 29.
Qg5 {[%clk 0:00:55]} 29... Nb4 {[%clk 0:00:05.2]} 30. Ne5 {[%clk 0:00:44]} 30...
Rxc3 {[%clk 0:00:04.5]} 31. bxc3 {[%clk 0:00:44]} 31... Nd5 {[%clk 0:00:03.7]}
32. Ng4 {[%clk 0:00:36.1]} 32... Nf4 {[%clk 0:00:02.1]} 33. h5 {[%clk
0:00:30.2]} 33... Nxg6 {[%clk 0:00:01]} 34. hxg6 {[%clk 0:00:30]} 34... Kh8
{[%clk 0:00:01.6]} 35. Qh4+ {[%clk 0:00:28.7]} 35... Kg8 {[%clk 0:00:02]} 36.
Nh6+ {[%clk 0:00:29]} 36... Kh8 {[%clk 0:00:01.9]} 37. Nf5+ {[%clk 0:00:28]}
37... Kg8 {[%clk 0:00:02.2]} 38. Nxg7 {[%clk 0:00:28.3]} 1-0

[Event "*** Titled Tuesday Blitz"]
[Site "Chess.com"]
[Date "2020.12.29"]
[Round "7"]
[White "ckgchess"]
[Black "FairChess_on_YouTube"]
[Result "0-1"]
[WhiteElo "2772"]
[BlackElo "3001"]
[TimeControl "180+1"]
[EndTime "11:16:47 PST"]
[Termination "FairChess_on_YouTube won on time"]

1. e4 {[%clk 0:03:00.9]} 1... c5 {[%clk 0:02:59.8]} 2. c3 {[%clk 0:03:01.2]}
2... d5 {[%clk 0:02:55.3]} 3. exd5 {[%clk 0:03:02.1]} 3... Qxd5 {[%clk
0:02:55.2]} 4. d4 {[%clk 0:03:02.6]} 4... Nf6 {[%clk 0:02:55.5]} 5. Nf3 {[%clk
0:03:03.1]} 5... e6 {[%clk 0:02:52.8]} 6. Na3 {[%clk 0:02:51.3]} 6... a6 {[%clk
0:02:47.2]} 7. Nc4 {[%clk 0:02:40.5]} 7... Nbd7 {[%clk 0:02:47]} 8. a4 {[%clk
0:02:39.3]} 8... b6 {[%clk 0:02:41.8]} 9. a5 {[%clk 0:02:21.3]} 9... b5 {[%clk
0:02:39.9]} 10. Ne3 {[%clk 0:02:13.6]} 10... Qc6 {[%clk 0:02:31.9]} 11. Be2
{[%clk 0:02:09.7]} 11... Bb7 {[%clk 0:02:29.6]} 12. Ne5 {[%clk 0:01:55.2]} 12...
Nxe5 {[%clk 0:02:17.6]} 13. dxe5 {[%clk 0:01:56.1]} 13... Rd8 {[%clk 0:02:17.8]}
14. Qc2 {[%clk 0:01:46.8]} 14... Nd7 {[%clk 0:02:16.4]} 15. Bf3 {[%clk
0:01:42.2]} 15... Qc7 {[%clk 0:02:16.6]} 16. Bxb7 {[%clk 0:01:32.2]} 16... Qxb7
{[%clk 0:02:17.5]} 17. O-O {[%clk 0:01:03.1]} 17... c4 {[%clk 0:02:14.3]} 18.
Ng4 {[%clk 0:01:00.3]} 18... h5 {[%clk 0:02:13.9]} 19. Bg5 {[%clk 0:01:00.4]}
19... hxg4 {[%clk 0:02:10.2]} 20. Bxd8 {[%clk 0:01:00.5]} 20... Kxd8 {[%clk
0:02:11.1]} 21. Rad1 {[%clk 0:00:56.9]} 21... Kc8 {[%clk 0:02:09.7]} 22. Rfe1
{[%clk 0:00:56.1]} 22... Bc5 {[%clk 0:01:58.8]} 23. b3 {[%clk 0:00:56.2]} 23...
cxb3 {[%clk 0:01:55.7]} 24. Qxb3 {[%clk 0:00:57.1]} 24... Rh5 {[%clk 0:01:54.8]}
25. c4 {[%clk 0:00:51.4]} 25... b4 {[%clk 0:01:49.4]} 26. Qg3 {[%clk 0:00:50.4]}
26... b3 {[%clk 0:01:35.7]} 27. Rd3 {[%clk 0:00:39.7]} 27... Rxe5 {[%clk
0:01:16.7]} 28. Rf1 {[%clk 0:00:18]} 28... b2 {[%clk 0:00:43.7]} 29. Rb3 {[%clk
0:00:18]} 29... Bxf2+ {[%clk 0:00:44.1]} 30. Kxf2 {[%clk 0:00:08.5]} 30... Rf5+
{[%clk 0:00:41.2]} 31. Ke2 {[%clk 0:00:04.2]} 31... Qe4+ {[%clk 0:00:22]} 32.
Qe3 {[%clk 0:00:04.4]} 32... Qxe3+ {[%clk 0:00:17.6]} 0-1

[Event "*** Titled Tuesday Blitz"]
[Site "Chess.com"]
[Date "2020.12.29"]
[Round "7"]
[White "PowerThinking2650"]
[Black "Efremov_Vlad"]
[Result "1-0"]
[WhiteElo "2428"]
[BlackElo "2271"]
[TimeControl "180+1"]
[EndTime "11:16:47 PST"]
[Termination "PowerThinking2650 won on time"]

1. e4 {[%clk 0:03:00.9]} 1... c5 {[%clk 0:02:59.5]} 2. Nf3 {[%clk 0:03:00]} 2...
e6 {[%clk 0:02:59.1]} 3. d4 {[%clk 0:02:59.9]} 3... cxd4 {[%clk 0:03:00]} 4.
Nxd4 {[%clk 0:03:00.4]} 4... Nc6 {[%clk 0:03:00.7]} 5. Nb5 {[%clk 0:02:59.5]}
5... d6 {[%clk 0:02:58.7]} 6. c4 {[%clk 0:02:59.2]} 6... a6 {[%clk 0:02:58.1]}
7. N5c3 {[%clk 0:02:57.1]} 7... Nf6 {[%clk 0:02:57.9]} 8. Be2 {[%clk 0:02:56.7]}
8... Be7 {[%clk 0:02:57.4]} 9. O-O {[%clk 0:02:56.3]} 9... O-O {[%clk
0:02:57.6]} 10. Be3 {[%clk 0:02:55.9]} 10... b6 {[%clk 0:02:53.8]} 11. Na3
{[%clk 0:02:51.8]} 11... Bb7 {[%clk 0:02:52.1]} 12. Rc1 {[%clk 0:02:48.1]} 12...
Rc8 {[%clk 0:02:45.4]} 13. f3 {[%clk 0:02:43.7]} 13... Ne5 {[%clk 0:02:34.5]}
14. Qb3 {[%clk 0:02:39.6]} 14... Ned7 {[%clk 0:01:58]} 15. Rfd1 {[%clk
0:02:38.1]} 15... Qc7 {[%clk 0:01:49.9]} 16. Rd2 {[%clk 0:02:35.2]} 16... Nc5
{[%clk 0:01:44.7]} 17. Qd1 {[%clk 0:02:33.8]} 17... Rfd8 {[%clk 0:01:40.3]} 18.
Nc2 {[%clk 0:02:28]} 18... Ncd7 {[%clk 0:01:27.2]} 19. Nd4 {[%clk 0:02:26.3]}
19... Kh8 {[%clk 0:01:18]} 20. g4 {[%clk 0:02:08]} 20... d5 {[%clk 0:00:58.8]}
21. g5 {[%clk 0:02:04.5]} 21... dxe4 {[%clk 0:00:33.4]} 22. gxf6 {[%clk
0:02:02.8]} 22... Nxf6 {[%clk 0:00:34.3]} 23. fxe4 {[%clk 0:01:58.1]} 23... Nxe4
{[%clk 0:00:33.8]} 24. Nxe4 {[%clk 0:01:57.6]} 24... Bxe4 {[%clk 0:00:34.7]} 25.
Bf3 {[%clk 0:01:44.7]} 25... Bxf3 {[%clk 0:00:32.1]} 26. Qxf3 {[%clk 0:01:44.1]}
26... Bc5 {[%clk 0:00:32.1]} 27. Rcd1 {[%clk 0:01:43.2]} 27... Bb4 {[%clk
0:00:15.2]} 28. Rg2 {[%clk 0:01:11.8]} 28... Rg8 {[%clk 0:00:10.7]} 29. b3
{[%clk 0:01:09]} 29... Qe5 {[%clk 0:00:10.1]} 30. Nc6 {[%clk 0:01:00.9]} 30...
Rxc6 {[%clk 0:00:05.3]} 31. Qxc6 {[%clk 0:00:58.9]} 31... Qxe3+ {[%clk
0:00:05.4]} 32. Kh1 {[%clk 0:00:58.9]} 32... Bc5 {[%clk 0:00:06]} 33. Rf1 {[%clk
0:00:53.5]} 33... f5 {[%clk 0:00:05.8]} 34. Qd7 {[%clk 0:00:33.1]} 34... f4
{[%clk 0:00:06.2]} 35. Rd1 {[%clk 0:00:30.9]} 35... f3 {[%clk 0:00:06.1]} 36.
Qxg7+ {[%clk 0:00:29.5]} 36... Rxg7 {[%clk 0:00:06.7]} 37. Rd8+ {[%clk
0:00:29.1]} 1-0

[Event "*** Titled Tuesday Blitz"]
[Site "Chess.com"]
[Date "2020.12.29"]
[Round "7"]
[White "Zmeeed63"]
[Black "Kildepiotr"]
[Result "0-1"]
[WhiteElo "2315"]
[BlackElo "2616"]
[TimeControl "180+1"]
[EndTime "11:16:47 PST"]
[Termination "Kildepiotr won on time"]

1. d4 {[%clk 0:02:55]} 1... c5 {[%clk 0:02:59.1]} 2. d5 {[%clk 0:02:53.7]} 2...
e5 {[%clk 0:02:59.1]} 3. Nc3 {[%clk 0:02:52.6]} 3... d6 {[%clk 0:02:59.3]} 4. e4
{[%clk 0:02:53]} 4... Be7 {[%clk 0:02:59.9]} 5. Be2 {[%clk 0:02:46.7]} 5... a6
{[%clk 0:02:57.8]} 6. Bg4 {[%clk 0:02:46.5]} 6... Nd7 {[%clk 0:02:56]} 7. Nge2
{[%clk 0:02:44.4]} 7... Bg5 {[%clk 0:02:55.9]} 8. a4 {[%clk 0:02:43.4]} 8...
Bxc1 {[%clk 0:02:55.4]} 9. Qxc1 {[%clk 0:02:42.1]} 9... Ne7 {[%clk 0:02:55.9]}
10. O-O {[%clk 0:02:41.7]} 10... O-O {[%clk 0:02:55.4]} 11. Qe3 {[%clk
0:02:40.2]} 11... Ng6 {[%clk 0:02:52.3]} 12. b3 {[%clk 0:02:27.1]} 12... Nf6
{[%clk 0:02:49.1]} 13. Bxc8 {[%clk 0:02:26.7]} 13... Qxc8 {[%clk 0:02:50]} 14.
f4 {[%clk 0:02:24]} 14... exf4 {[%clk 0:02:49.8]} 15. Nxf4 {[%clk 0:02:24.9]}
15... Ne5 {[%clk 0:02:48.1]} 16. Nd3 {[%clk 0:02:19.5]} 16... Nfg4 {[%clk
0:02:45.2]} 17. Qg3 {[%clk 0:02:15.8]} 17... Qd7 {[%clk 0:02:42]} 18. Nxc5
{[%clk 0:01:47.8]} 18... Qc7 {[%clk 0:02:24.6]} 19. b4 {[%clk 0:00:47]} 19...
dxc5 {[%clk 0:02:22.5]} 20. b5 {[%clk 0:00:46.8]} 20... f6 {[%clk 0:02:17]} 21.
Ne2 {[%clk 0:00:37.4]} 21... c4 {[%clk 0:02:04]} 22. h3 {[%clk 0:00:31.9]} 22...
Qb6+ {[%clk 0:01:53.2]} 23. Kh1 {[%clk 0:00:31.6]} 23... Ne3 {[%clk 0:01:51.9]}
24. Rf3 {[%clk 0:00:19.6]} 24... Nxf3 {[%clk 0:01:50.6]} 25. gxf3 {[%clk
0:00:18.1]} 25... axb5 {[%clk 0:01:46.1]} 26. Nf4 {[%clk 0:00:16.7]} 26... Rf7
{[%clk 0:01:32.1]} 27. Rg1 {[%clk 0:00:10.6]} 27... bxa4 {[%clk 0:01:27.8]} 28.
Ne6 {[%clk 0:00:09.9]} 28... g6 {[%clk 0:01:20.7]} 29. h4 {[%clk 0:00:08.4]}
29... Rg7 {[%clk 0:01:02.3]} 30. h5 {[%clk 0:00:06.5]} 30... g5 {[%clk
0:01:02.3]} 31. Nxg7 {[%clk 0:00:03.8]} 31... Kxg7 {[%clk 0:01:03.2]} 32. f4
{[%clk 0:00:04.2]} 32... h6 {[%clk 0:00:51.7]} 33. fxg5 {[%clk 0:00:04]} 33...
hxg5 {[%clk 0:00:52.5]} 34. e5 {[%clk 0:00:02.7]} 34... Kh6 {[%clk 0:00:44.2]}
35. exf6 {[%clk 0:00:01.7]} 35... Qxf6 {[%clk 0:00:34.5]} 36. Qxe3 {[%clk
0:00:02.1]} 36... a3 {[%clk 0:00:32.7]} 0-1

[Event "*** Titled Tuesday Blitz"]
[Site "Chess.com"]
[Date "2020.12.29"]
[Round "7"]
[White "CHENNAIBOND"]
[Black "Michaelson_11"]
[Result "0-1"]
[WhiteElo "1576"]
[BlackElo "2198"]
[TimeControl "180+1"]
[EndTime "11:16:49 PST"]
[Termination "Michaelson_11 won by resignation"]

1. e4 {[%clk 0:03:00.9]} 1... c5 {[%clk 0:02:59.8]} 2. Nf3 {[%clk 0:03:00.8]}
2... Nc6 {[%clk 0:03:00.4]} 3. Bb5 {[%clk 0:02:59.4]} 3... g6 {[%clk 0:03:00]}
4. O-O {[%clk 0:02:59.3]} 4... Bg7 {[%clk 0:02:59.5]} 5. Re1 {[%clk 0:02:59]}
5... Nf6 {[%clk 0:02:59.7]} 6. e5 {[%clk 0:02:59.1]} 6... Nd5 {[%clk 0:02:59.9]}
7. Nc3 {[%clk 0:02:59.5]} 7... Nxc3 {[%clk 0:02:55.2]} 8. dxc3 {[%clk
0:02:51.7]} 8... O-O {[%clk 0:02:53.8]} 9. Bf4 {[%clk 0:02:49]} 9... Qb6 {[%clk
0:02:41.7]} 10. Bxc6 {[%clk 0:02:20.9]} 10... Qxc6 {[%clk 0:02:38.1]} 11. Qd2
{[%clk 0:02:15.1]} 11... b6 {[%clk 0:02:37.1]} 12. Rad1 {[%clk 0:02:11.6]} 12...
Rd8 {[%clk 0:02:31.2]} 13. Bh6 {[%clk 0:02:04.5]} 13... Bb7 {[%clk 0:02:25.2]}
14. Bxg7 {[%clk 0:01:47.7]} 14... Kxg7 {[%clk 0:02:26.1]} 15. Qg5 {[%clk
0:01:47.4]} 15... Qe6 {[%clk 0:02:22.2]} 16. Nh4 {[%clk 0:01:38.7]} 16... h6
{[%clk 0:02:17.6]} 17. Qg3 {[%clk 0:01:37.6]} 17... Kh7 {[%clk 0:02:10.8]} 18.
Rd3 {[%clk 0:01:21.9]} 18... f5 {[%clk 0:01:28.3]} 19. Red1 {[%clk 0:01:13.1]}
19... Be4 {[%clk 0:01:21.6]} 20. R3d2 {[%clk 0:00:55.2]} 20... g5 {[%clk
0:01:17.1]} 21. Nf3 {[%clk 0:00:49.2]} 21... f4 {[%clk 0:01:16.1]} 22. Nxg5+
{[%clk 0:00:37.9]} 22... hxg5 {[%clk 0:01:03.7]} 23. Qxg5 {[%clk 0:00:38.8]}
23... Rg8 {[%clk 0:00:51.2]} 24. Qh5+ {[%clk 0:00:39]} 24... Qh6 {[%clk
0:00:51.4]} 25. Qxh6+ {[%clk 0:00:30.7]} 25... Kxh6 {[%clk 0:00:52.3]} 26. f3
{[%clk 0:00:30]} 26... Bxf3 {[%clk 0:00:52]} 27. Rf1 {[%clk 0:00:26.5]} 27...
Bc6 {[%clk 0:00:45.1]} 28. Rxf4 {[%clk 0:00:26.2]} 28... Raf8 {[%clk 0:00:43.6]}
29. Rh4+ {[%clk 0:00:25.6]} 29... Kg5 {[%clk 0:00:40.3]} 30. Rh7 {[%clk
0:00:24.7]} 30... Bb5 {[%clk 0:00:25]} 31. h4+ {[%clk 0:00:22]} 31... Kg4 {[%clk
0:00:19.1]} 32. Rxe7 {[%clk 0:00:19.9]} 32... Kg3 {[%clk 0:00:19]} 33. Rd1
{[%clk 0:00:12]} 33... Rf2 {[%clk 0:00:19]} 34. h5 {[%clk 0:00:05.3]} 34...
Rxg2+ {[%clk 0:00:19]} 35. Kh1 {[%clk 0:00:05.5]} 35... Rh2+ {[%clk 0:00:18.5]}
36. Kg1 {[%clk 0:00:04.5]} 36... Kh3+ {[%clk 0:00:18.5]} 0-1

[Event "*** Titled Tuesday Blitz"]
[Site "Chess.com"]
[Date "2020.12.29"]
[Round "7"]
[White "Grammnik"]
[Black "r31415"]
[Result "1-0"]
[WhiteElo "2338"]
[BlackElo "2486"]
[TimeControl "180+1"]
[EndTime "11:16:53 PST"]
[Termination "Grammnik won on time"]

1. d4 {[%clk 0:03:00.9]} 1... Nf6 {[%clk 0:02:57.5]} 2. c4 {[%clk 0:03:00.5]}
2... g6 {[%clk 0:02:53.8]} 3. Nc3 {[%clk 0:03:00.6]} 3... d5 {[%clk 0:02:54.3]}
4. cxd5 {[%clk 0:02:59.8]} 4... Nxd5 {[%clk 0:02:55.2]} 5. e4 {[%clk 0:03:00.4]}
5... Nxc3 {[%clk 0:02:55.5]} 6. bxc3 {[%clk 0:03:01.3]} 6... Bg7 {[%clk
0:02:55.9]} 7. Nf3 {[%clk 0:03:01.6]} 7... c5 {[%clk 0:02:56.4]} 8. Rb1 {[%clk
0:03:02]} 8... O-O {[%clk 0:02:55.7]} 9. Be2 {[%clk 0:03:02.1]} 9... Nc6 {[%clk
0:02:52.3]} 10. d5 {[%clk 0:03:01.5]} 10... Ne5 {[%clk 0:02:52.8]} 11. Nxe5
{[%clk 0:03:01.2]} 11... Bxe5 {[%clk 0:02:53.7]} 12. Qd2 {[%clk 0:03:02]} 12...
e6 {[%clk 0:02:52.5]} 13. f4 {[%clk 0:02:58.9]} 13... Bc7 {[%clk 0:02:51.8]} 14.
O-O {[%clk 0:02:56.1]} 14... exd5 {[%clk 0:02:51.6]} 15. exd5 {[%clk 0:02:55.8]}
15... Ba5 {[%clk 0:02:50.2]} 16. f5 {[%clk 0:02:51.2]} 16... Bxf5 {[%clk
0:02:36.4]} 17. Rxf5 {[%clk 0:02:50.1]} 17... gxf5 {[%clk 0:02:34.8]} 18. Rxb7
{[%clk 0:02:17.1]} 18... Re8 {[%clk 0:02:10.9]} 19. Bc4 {[%clk 0:02:07.8]} 19...
Qd6 {[%clk 0:01:42.2]} 20. Rb5 {[%clk 0:01:57.9]} 20... Bc7 {[%clk 0:01:33.1]}
21. g3 {[%clk 0:01:50.8]} 21... f4 {[%clk 0:01:24.1]} 22. Qxf4 {[%clk
0:01:22.7]} 22... Re1+ {[%clk 0:01:08.4]} 23. Kf2 {[%clk 0:01:17.9]} 23... Qe7
{[%clk 0:01:02.1]} 24. Qg4+ {[%clk 0:01:11.5]} 24... Kh8 {[%clk 0:01:01.1]} 25.
Bd2 {[%clk 0:01:10.9]} 25... Rh1 {[%clk 0:00:58.3]} 26. Kg2 {[%clk 0:00:59]}
26... Ra1 {[%clk 0:00:54.3]} 27. Rb7 {[%clk 0:00:48.6]} 27... Re8 {[%clk
0:00:46.8]} 28. Kh3 {[%clk 0:00:22.1]} 28... Qd6 {[%clk 0:00:34.5]} 29. Bf4
{[%clk 0:00:20.3]} 29... Qf6 {[%clk 0:00:03.4]} 30. Rxc7 {[%clk 0:00:19.4]}
30... Rg8 {[%clk 0:00:03.3]} 31. Qd7 {[%clk 0:00:15.9]} 31... Qg6 {[%clk
0:00:02.3]} 32. Be2 {[%clk 0:00:13.5]} 32... Re1 {[%clk 0:00:02.1]} 33. Bf3
{[%clk 0:00:12.9]} 33... Qf6 {[%clk 0:00:01.5]} 34. Qxf7 {[%clk 0:00:11.6]} 1-0

[Event "*** Titled Tuesday Blitz"]
[Site "Chess.com"]
[Date "2020.12.29"]
[Round "7"]
[White "Spriteball"]
[Black "Das_Virus_2020"]
[Result "1/2-1/2"]
[WhiteElo "2319"]
[BlackElo "2474"]
[TimeControl "180+1"]
[EndTime "11:16:53 PST"]
[Termination "Game drawn by agreement"]

1. c4 {[%clk 0:03:00.9]} 1... Nf6 {[%clk 0:02:59.3]} 2. Nc3 {[%clk 0:03:00.4]}
2... g6 {[%clk 0:02:57.4]} 3. e4 {[%clk 0:02:59.9]} 3... d6 {[%clk 0:02:57.1]}
4. d4 {[%clk 0:03:00.2]} 4... Bg7 {[%clk 0:02:55.6]} 5. Nf3 {[%clk 0:03:00.5]}
5... O-O {[%clk 0:02:53.9]} 6. Be2 {[%clk 0:03:00.8]} 6... c5 {[%clk 0:02:54]}
7. d5 {[%clk 0:02:59.3]} 7... e6 {[%clk 0:02:54]} 8. O-O {[%clk 0:02:58.8]} 8...
exd5 {[%clk 0:02:54.5]} 9. exd5 {[%clk 0:02:55.9]} 9... Bg4 {[%clk 0:02:50.2]}
10. Bf4 {[%clk 0:02:52.4]} 10... a6 {[%clk 0:02:49.1]} 11. h3 {[%clk 0:02:49.9]}
11... Bxf3 {[%clk 0:02:46.9]} 12. Bxf3 {[%clk 0:02:50.8]} 12... Qc7 {[%clk
0:02:37.8]} 13. Re1 {[%clk 0:02:46.1]} 13... Nbd7 {[%clk 0:02:37.4]} 14. Re7
{[%clk 0:02:36.6]} 14... Rfe8 {[%clk 0:02:29.1]} 15. Qe2 {[%clk 0:02:35.4]}
15... Bf8 {[%clk 0:02:27.1]} 16. Rxe8 {[%clk 0:02:30.7]} 16... Rxe8 {[%clk
0:02:26.3]} 17. Qd2 {[%clk 0:02:31.4]} 17... Ne5 {[%clk 0:02:25.3]} 18. Be2
{[%clk 0:02:26.8]} 18... Nfd7 {[%clk 0:02:13.6]} 19. Re1 {[%clk 0:02:05.6]}
19... Qd8 {[%clk 0:01:50.9]} 20. Bf1 {[%clk 0:01:52.4]} 20... f5 {[%clk
0:01:47.4]} 21. Kh1 {[%clk 0:01:39.1]} 21... Nf7 {[%clk 0:01:37]} 22. Rxe8
{[%clk 0:01:34.8]} 22... Qxe8 {[%clk 0:01:37.9]} 23. Qe2 {[%clk 0:01:29.9]}
23... Qxe2 {[%clk 0:01:37]} 24. Bxe2 {[%clk 0:01:30.8]} 24... Bg7 {[%clk
0:01:14.8]} 25. Bd2 {[%clk 0:01:24.7]} 25... Bd4 {[%clk 0:01:07.7]} 26. f4
{[%clk 0:01:14.7]} 26... Nf6 {[%clk 0:01:04.4]} 27. g4 {[%clk 0:01:07.8]} 27...
Kf8 {[%clk 0:00:52.7]} 28. Kg2 {[%clk 0:01:06.5]} 28... Ke7 {[%clk 0:00:52.1]}
29. gxf5 {[%clk 0:00:59.5]} 29... gxf5 {[%clk 0:00:51.8]} 30. Bd3 {[%clk
0:00:58.3]} 30... Nh6 {[%clk 0:00:50.6]} 31. Kf3 {[%clk 0:00:57.1]} 31... Nd7
{[%clk 0:00:47.4]} 32. b3 {[%clk 0:00:54.8]} 32... Kf7 {[%clk 0:00:31.9]} 33.
Ne2 {[%clk 0:00:53.1]} 33... Bg7 {[%clk 0:00:24.5]} 34. Ng3 {[%clk 0:00:42.7]}
34... Kg6 {[%clk 0:00:24.5]} 35. h4 {[%clk 0:00:40.5]} 35... Nf6 {[%clk
0:00:24.4]} 36. Ba5 {[%clk 0:00:29.5]} 36... Bf8 {[%clk 0:00:22.1]} 37. Bc7
{[%clk 0:00:23.9]} 37... Nh5 {[%clk 0:00:17.3]} 38. Bd8 {[%clk 0:00:20.2]} 38...
Nxg3 {[%clk 0:00:15.7]} 39. Kxg3 {[%clk 0:00:20.6]} 39... Nf7 {[%clk 0:00:15.7]}
40. Ba5 {[%clk 0:00:19.5]} 40... h5 {[%clk 0:00:12.3]} 41. Bc3 {[%clk
0:00:19.2]} 41... Be7 {[%clk 0:00:11.6]} 42. Bb2 {[%clk 0:00:19]} 1/2-1/2

[Event "*** Titled Tuesday Blitz"]
[Site "Chess.com"]
[Date "2020.12.29"]
[Round "7"]
[White "djano"]
[Black "Xeslu"]
[Result "1-0"]
[WhiteElo "2450"]
[BlackElo "2295"]
[TimeControl "180+1"]
[EndTime "11:16:54 PST"]
[Termination "djano won on time"]

1. e4 {[%clk 0:03:00.9]} 1... c5 {[%clk 0:02:58.4]} 2. Nc3 {[%clk 0:03:00.5]}
2... a6 {[%clk 0:02:57.7]} 3. f4 {[%clk 0:02:59.1]} 3... b5 {[%clk 0:02:57.1]}
4. Nf3 {[%clk 0:02:59.5]} 4... b4 {[%clk 0:02:57.3]} 5. Ne2 {[%clk 0:02:53]}
5... Bb7 {[%clk 0:02:57.1]} 6. Ng3 {[%clk 0:02:53.3]} 6... g6 {[%clk 0:02:56.1]}
7. Bc4 {[%clk 0:02:51.2]} 7... Bg7 {[%clk 0:02:55.6]} 8. e5 {[%clk 0:02:41.1]}
8... Nh6 {[%clk 0:02:49.7]} 9. d4 {[%clk 0:02:38]} 9... cxd4 {[%clk 0:02:48.8]}
10. Nxd4 {[%clk 0:02:38.2]} 10... Bxg2 {[%clk 0:02:30.8]} 11. Rg1 {[%clk
0:02:38.5]} 11... Bb7 {[%clk 0:02:30.5]} 12. Nh5 {[%clk 0:02:38.3]} 12... O-O
{[%clk 0:02:22.2]} 13. Nxg7 {[%clk 0:02:36.3]} 13... Kxg7 {[%clk 0:02:22.2]} 14.
f5 {[%clk 0:02:36.8]} 14... Ng8 {[%clk 0:02:16.4]} 15. Qh5 {[%clk 0:02:22.2]}
15... Qc7 {[%clk 0:02:12.4]} 16. fxg6 {[%clk 0:02:07.4]} 16... fxg6 {[%clk
0:01:57]} 17. Bxg8 {[%clk 0:01:42.1]} 17... Rxg8 {[%clk 0:01:56.6]} 18. Nf5+
{[%clk 0:01:21.1]} 18... Kh8 {[%clk 0:01:56.1]} 19. Nxe7 {[%clk 0:01:21.4]}
19... Be4 {[%clk 0:01:03.2]} 20. Qh4 {[%clk 0:00:45.8]} 20... Qxe5 {[%clk
0:00:48.8]} 21. Bf4 {[%clk 0:00:45.6]} 21... Qxb2 {[%clk 0:00:40.4]} 22. Nxg8
{[%clk 0:00:21.8]} 22... Qxa1+ {[%clk 0:00:19.9]} 23. Kf2 {[%clk 0:00:21.9]}
23... Qg7 {[%clk 0:00:20.3]} 24. Bh6 {[%clk 0:00:15.5]} 24... Qd4+ {[%clk
0:00:19.7]} 25. Be3 {[%clk 0:00:11.7]} 25... Qg7 {[%clk 0:00:18.6]} 26. Qxe4
{[%clk 0:00:07.9]} 26... Nc6 {[%clk 0:00:17.4]} 27. Nh6 {[%clk 0:00:05.7]} 27...
Rf8+ {[%clk 0:00:16.5]} 28. Kg2 {[%clk 0:00:06.2]} 28... Ne5 {[%clk 0:00:11.9]}
29. Ng4 {[%clk 0:00:05.9]} 29... Nxg4 {[%clk 0:00:11.4]} 30. Qxg4 {[%clk
0:00:06.8]} 30... Qe5 {[%clk 0:00:11.2]} 31. Bd4 {[%clk 0:00:07]} 1-0